fUSD/lending_fUSD_20250814
["ID","MTS","AMOUNT","RATE_DAILY","PERIOD"]
[379179219,1755178501918,-1520.06,0.00027522,2]
[379179220,1755178501945,-1028.68,0.00027522,2]
[379179221,1755178501967,-616.56,0.00027522,2]
[379179222,1755178501992,-25350.4922368,0.00027523,2]
[379179223,1755178502015,-179.474086,0.00027523,7]
[379179224,1755178502042,-1846.558968,0.00027523,7]
[379179225,1755178502068,-179.474086,0.00027523,7]
[379179226,1755178502091,-1846.558968,0.00027523,7]
[379179227,1755178502113,-549.63,0.00027523,2]
[379179228,1755178502137,-500.0,0.00027523,2]
[379179229,1755178502159,-243.282301,0.00027523,7]
[379179230,1755178502181,-243.282301,0.00027523,7]
[379179231,1755178502206,-2577.842514,0.00027523,7]
[379179232,1755178502228,-2577.842514,0.00027523,7]
[379179233,1755178502251,-25350.4922368,0.00027524,2]
[379179234,1755178502274,-69503.56932076,0.00027524,2]
[379179284,1755178529238,-1200.0,0.00018999,2]
[379179285,1755178529262,-1680.0,0.0002081,2]
[379179286,1755178529285,-300.0,0.00020999,2]
[379179287,1755178529308,-300.0,0.00020999,2]
[379179288,1755178529330,-133146.78409248,0.0002139,2]
[379179289,1755178529353,-1720.0,0.00022793,2]
[379179290,1755178529375,-420.0,0.00022842,2]
[379179291,1755178529398,-420.0,0.00022842,2]
[379179292,1755178529421,-587.0,0.00024847,2]
[379179293,1755178529443,-9518.43,0.00025367,2]
[379179294,1755178529469,-276.51448846,0.00025434,2]
[379179295,1755178529493,-301.16,0.00025534,2]
[379179296,1755178529516,-152.0,0.00025808,3]
[379179297,1755178529539,-166.67,0.00025871,2]
[379179298,1755178529562,-276.51448845,0.00026366,2]
[379179299,1755178529586,-823.0,0.00027028,2]
[379179300,1755178529607,-276.51448845,0.00027297,2]
[379179301,1755178529629,-788.98,0.00027386,2]
[379179302,1755178529651,-400.0,0.00027397,2]
[379179303,1755178529673,-400.0,0.00027397,2]
[379179304,1755178529697,-5260.33,0.00027397,2]
[379179305,1755178529723,-400.0,0.00027397,2]
[379179306,1755178529748,-3165.55,0.00027397,2]
[379179307,1755178529772,-400.0,0.00027397,2]
[379179308,1755178529797,-9620.55244216,0.00027397,2]
[379179323,1755178626013,-511.0,0.00021,2]
[379179324,1755178626036,-151.31,0.00022674,2]
[379179325,1755178626064,-577.2,0.00022674,2]
[379179326,1755178626088,-150.0,0.0002533,2]
[379179327,1755178626113,-248.54567953,0.00025446,2]
[379179328,1755178626138,-291.50419204,0.00025561,2]
[379179329,1755178626166,-334.46270455,0.00025676,2]
[379179330,1755178626189,-377.42121707,0.00025792,2]
[379179331,1755178626213,-420.37972958,0.00025907,2]
[379179332,1755178626235,-1000.0,0.00026,4]
[379179333,1755178626258,-151.48,0.00026,2]
[379179334,1755178626282,-463.33824209,0.00026023,2]
[379179335,1755178626307,-300.0,0.00026041,120]
[379179336,1755178626330,-1000.0,0.00026041,4]
[379179337,1755178626353,-577.2,0.00026042,2]
[379179338,1755178626375,-300.0,0.00026068,120]
[379179339,1755178626398,-500.0,0.00026068,120]
[379179340,1755178626422,-2500.0,0.00026068,120]
[379179341,1755178626445,-300.0,0.00026121,120]
[379179342,1755178626469,-1000.0,0.00026121,4]
[379179343,1755178626493,-506.2967546,0.00026138,2]
[379179344,1755178626516,-500.0,0.0002619,120]
[379179345,1755178626539,-1205.28,0.0002621,120]
[379179346,1755178626563,-200.0,0.0002621,2]
[379179347,1755178626586,-549.25526711,0.00026253,2]
[379179348,1755178626609,-592.21377962,0.00026369,2]
[379179349,1755178626633,-635.17229213,0.00026484,2]
[379179350,1755178626658,-678.13080465,0.000266,2]
[379179351,1755178626682,-721.08931716,0.00026715,2]
[379179352,1755178626706,-764.04782967,0.0002683,2]
[379179353,1755178626730,-807.00634218,0.00026946,2]
[379179354,1755178626752,-168.14,0.00027,7]
[379179355,1755178626776,-849.96485469,0.00027061,2]
[379179356,1755178626802,-892.9233672,0.00027177,2]
[379179357,1755178626825,-935.88187972,0.00027292,2]
[379179358,1755178626848,-170.5275,0.00027297,2]
[379179359,1755178626871,-500.0,0.00027386,2]
[379179360,1755178626893,-581.46793773,0.00027386,2]
[379179361,1755178626917,-246.01513137,0.00027386,2]
[379179362,1755178626942,-500.0,0.00027386,2]
[379179363,1755178626978,-500.0,0.00027386,2]
[379179364,1755178627015,-223.64033302,0.00027386,2]
[379179365,1755178627037,-274.40833816,0.00027386,2]
[379179366,1755178627063,-244.89115096,0.00027386,2]
[379179367,1755178627087,-1200.0,0.00027386,2]
[379179369,1755178627109,-300.0,0.00027386,2]
[379179370,1755178627131,-1100.0,0.00027395,2]
[379179372,1755178627156,-10012.59755784,0.00027397,2]
[379179373,1755178627178,-416.15,0.00027397,2]
[379179374,1755178627199,-400.0,0.00027397,2]
[379179375,1755178627221,-1374.71,0.00027397,2]
[379179376,1755178627404,-9382.23,0.00027397,2]
[379179377,1755178627425,-400.0,0.00027397,2]
[379179378,1755178627446,-400.0,0.00027397,2]
[379179379,1755178627468,-3322.62,0.00027397,2]
[379179380,1755178627490,-400.0,0.00027397,2]
[379179381,1755178627513,-400.0,0.00027397,2]
[379179382,1755178627536,-400.0,0.00027397,2]
[379179383,1755178627561,-4013.94,0.00027397,2]
[379179384,1755178627581,-400.0,0.00027397,2]
[379179385,1755178627602,-500.0,0.00027397,2]
[379179386,1755178627624,-737.38,0.00027397,2]
[379179387,1755178627646,-1083.6,0.00027397,2]
[379179388,1755178627667,-4449.27,0.00027397,2]
[379179389,1755178627687,-826.42,0.00027397,2]
[379179390,1755178627708,-3302.59,0.00027397,2]
[379179391,1755178627730,-3493.91,0.00027397,2]
[379179392,1755178627752,-400.0,0.00027397,2]
[379179393,1755178627772,-2650.64,0.00027397,2]
[379179394,1755178627793,-400.0,0.00027397,2]
[379179395,1755178627821,-624.5,0.00027397,2]
[379179396,1755178627848,-400.0,0.00027397,2]
[379179397,1755178627871,-1460.93,0.00027397,2]
[379179398,1755178627893,-1375.54,0.00027397,2]
[379179399,1755178627914,-1820.68,0.00027397,2]
[379179400,1755178627935,-400.0,0.00027397,2]
[379179401,1755178627958,-5298.35,0.00027397,2]
[379179402,1755178627979,-3117.47,0.00027397,2]
[379179403,1755178628000,-400.0,0.00027397,2]
[379179404,1755178628022,-400.0,0.00027397,2]
[379179405,1755178628043,-2405.13,0.00027397,2]
[379179406,1755178628081,-2918.07,0.00027397,2]
[379179407,1755178628103,-5340.6,0.00027397,2]
[379179408,1755178628124,-400.0,0.00027397,2]
[379179409,1755178628146,-10626.18,0.00027397,2]
[379179410,1755178628170,-1090.43,0.00027397,2]
[379179411,1755178628192,-400.0,0.00027397,2]
[379179412,1755178628214,-8778.1,0.00027397,2]
[379179413,1755178628236,-400.0,0.00027397,2]
[379179414,1755178628258,-2763.64,0.00027397,2]
[379179415,1755178628279,-400.0,0.00027397,2]
[379179416,1755178628304,-400.0,0.00027397,2]
[379179417,1755178628326,-794.83,0.00027397,2]
[379179418,1755178628351,-40905.76,0.00027397,2]
[379179419,1755178628372,-794.83,0.00027397,2]
[379179420,1755178628394,-929.36,0.00027397,2]
[379179421,1755178628416,-794.83,0.00027397,2]
[379179422,1755178628438,-400.0,0.00027397,2]
[379179423,1755178628461,-794.83,0.00027397,2]
[379179424,1755178628484,-794.83,0.00027397,2]
[379179425,1755178628507,-794.83,0.00027397,2]
[379179426,1755178628528,-794.83,0.00027397,2]
[379179427,1755178628553,-1874.43,0.00027397,2]
[379179428,1755178628574,-794.83,0.00027397,2]
[379179429,1755178628595,-6032.68,0.00027397,2]
[379179430,1755178628618,-400.0,0.00027397,2]
[379179431,1755178628639,-400.0,0.00027397,2]
[379179432,1755178628661,-8381.57,0.00027397,2]
[379179433,1755178628683,-1265.02,0.00027397,2]
[379179434,1755178628704,-3155.48,0.00027397,2]
[379179435,1755178628726,-400.0,0.00027397,2]
[379179436,1755178628748,-400.0,0.00027397,2]
[379179437,1755178628769,-3576.88,0.00027397,2]
[379179438,1755178628790,-400.0,0.00027397,2]
[379179439,1755178628824,-1202.94,0.00027397,2]
[379179440,1755178628850,-2889.94,0.00027397,2]
[379179441,1755178628873,-3911.98,0.00027397,2]
[379179442,1755178628896,-400.0,0.00027397,2]
[379179443,1755178628918,-3884.59,0.00027397,2]
[379179444,1755178628941,-1271.43,0.00027397,2]
[379179445,1755178628963,-4748.31,0.00027397,2]
[379179446,1755178628985,-400.0,0.00027397,2]
[379179447,1755178629007,-3371.01,0.00027397,2]
[379179448,1755178629034,-1679.77,0.00027397,2]
[379179449,1755178629061,-8238.95,0.00027397,2]
[379179450,1755178629084,-925.95,0.00027397,2]
[379179451,1755178629108,-6913.94,0.00027397,2]
[379179452,1755178629130,-1480.31,0.00027397,2]
[379179453,1755178629156,-400.0,0.00027397,2]
[379179454,1755178629178,-500.0,0.00027397,2]
[379179455,1755178629202,-500.0,0.00027397,2]
[379179456,1755178629224,-500.0,0.00027397,2]
[379179457,1755178629250,-400.0,0.00027397,2]
[379179458,1755178629272,-500.0,0.00027397,2]
[379179459,1755178629293,-400.0,0.00027397,2]
[379179460,1755178629319,-1583.88,0.00027397,2]
[379179461,1755178629342,-500.0,0.00027397,2]
[379179462,1755178629369,-400.0,0.00027397,2]
[379179463,1755178629394,-500.0,0.00027397,2]
[379179464,1755178629416,-500.0,0.00027397,2]
[379179465,1755178629438,-500.0,0.00027397,2]
[379179466,1755178629461,-11281.16,0.00027397,2]
[379179467,1755178629484,-400.0,0.00027397,2]
[379179468,1755178629506,-7538.61,0.00027397,2]
[379179469,1755178629530,-423.42,0.00027397,2]
[379179470,1755178629557,-3016.13,0.00027397,2]
[379179471,1755178629579,-400.0,0.00027397,2]
[379179472,1755178629600,-4328.38,0.00027397,2]
[379179473,1755178629622,-400.0,0.00027397,2]
[379179474,1755178629644,-731.18,0.00027397,2]
[379179475,1755178629666,-400.0,0.00027397,2]
[379179476,1755178629688,-1455.93,0.00027397,2]
[379179477,1755178629712,-3351.6,0.00027397,2]
[379179478,1755178629736,-2537.47,0.00027397,2]
[379179479,1755178629759,-3094.47,0.00027397,2]
[379179480,1755178629782,-3359.04,0.00027397,2]
[379179481,1755178629809,-2537.47,0.00027397,2]
[379179482,1755178629831,-2537.47,0.00027397,2]
[379179483,1755178629854,-7195.88,0.00027397,2]
[379179484,1755178629877,-400.0,0.00027397,2]
[379179485,1755178629900,-514.87,0.00027397,2]
[379179486,1755178629923,-2591.88,0.00027397,2]
[379179487,1755178629945,-3031.42,0.00027397,2]
[379179488,1755178629969,-3128.78,0.00027397,2]
[379179489,1755178629993,-583.49,0.00027397,7]
[379179490,1755178630016,-400.0,0.00027397,2]
[379179491,1755178630043,-400.0,0.00027397,2]
[379179492,1755178630071,-1708.7,0.00027397,2]
[379179493,1755178630094,-4727.58,0.00027397,2]
[379179494,1755178630118,-6514.22,0.00027397,2]
[379179495,1755178630142,-1012.66,0.00027397,2]
[379179496,1755178630165,-6515.38,0.00027397,2]
[379179497,1755178630187,-5506.14,0.00027397,2]
[379179498,1755178630211,-3766.49,0.00027397,2]
[379179499,1755178630232,-2000.0,0.00027397,30]
[379179500,1755178630255,-4648.27,0.00027397,2]
[379179501,1755178630277,-1272.0,0.00027397,2]
[379179502,1755178630299,-400.0,0.00027397,2]
[379179503,1755178630324,-400.0,0.00027397,2]
[379179504,1755178630345,-5331.19,0.00027397,2]
[379179505,1755178630369,-586.02,0.00027397,2]
[379179506,1755178630393,-8804.00779733,0.00027397,2]
[379179512,1755178661376,269.11,0.00013699,2]
[379179513,1755178661612,209.69,0.00016712,2]
[379179535,1755178822257,752.77771,0.000195,3]
[379179536,1755178822525,752.77771,0.000195,3]
[379179537,1755178823402,752.77771,0.000195,3]
[379179538,1755178823819,752.77771,0.000195,3]
[379179539,1755178824171,752.77774,0.000195,3]
[379179556,1755179008716,158.82248201,0.00024,120]
[379179609,1755179432777,-165.0,0.000198,2]
[379179610,1755179432787,-165.0,0.000198,2]
[379179611,1755179432796,-262.3,0.00020187,2]
[379179612,1755179432990,-6.81,0.00020187,2]
[379179613,1755179433000,-175.7,0.00020474,2]
[379179614,1755179433010,-129.62489786,0.000209,2]
[379179615,1755179433022,-46.94548058,0.000209,2]
[379179616,1755179433032,-506.0,0.00021,2]
[379179617,1755179433042,-513.0,0.00021,2]
[379179618,1755179433052,-151.3,0.00021,2]
[379179619,1755179433063,-1354.2478,0.00021304,2]
[379179620,1755179433073,-163.62,0.00021412,2]
[379179621,1755179433084,-5511.0,0.000218,5]
[379179622,1755179433094,-506.0,0.00021808,2]
[379179623,1755179433104,-1048.0,0.00022205,2]
[379179624,1755179433114,-1000.0,0.00022206,4]
[379179625,1755179433125,-1000.0,0.00022206,4]
[379179626,1755179433136,-506.0,0.00022616,3]
[379179627,1755179433146,-606.1,0.00022688,2]
[379179628,1755179433157,-2166.42,0.0002313,2]
[379179629,1755179433167,-165.24,0.00023227,2]
[379179630,1755179433178,-610.0,0.00023235,2]
[379179631,1755179433188,-250.0,0.00023305,2]
[379179632,1755179433199,-274.4,0.00023329,2]
[379179633,1755179433217,-854.51,0.00023358,2]
[379179634,1755179433227,-2311.73,0.00023362,2]
[379179635,1755179433238,-198.74,0.00023377,2]
[379179636,1755179433248,-436.68,0.00023415,2]
[379179637,1755179433259,-506.0,0.00023425,4]
[379179638,1755179433269,-666.0,0.00023429,3]
[379179639,1755179433281,-1000.0,0.00023473,2]
[379179640,1755179433292,-632.42,0.00023726,2]
[379179641,1755179433303,-191.53,0.00023783,2]
[379179642,1755179433313,-1597.18,0.00023866,2]
[379179643,1755179433325,-6794.86,0.00023973,7]
[379179645,1755179433335,-1000.0,0.00024147,2]
[379179647,1755179433345,-5000.0,0.00024152,2]
[379179649,1755179433356,-506.0,0.00024233,5]
[379179650,1755179433366,-632.42,0.00024616,2]
[379179652,1755179433377,-2000.0,0.00024658,15]
[379179654,1755179433387,-881.0,0.00024658,2]
[379179656,1755179433397,-150.0,0.00024879,2]
[379179658,1755179433407,-210.02029064,0.000249,2]
[379179660,1755179433418,-500.0,0.00024932,2]
[379179662,1755179433428,-2216.64,0.00025,2]
[379179664,1755179433437,-150.0,0.00025011,4]
[379179666,1755179433447,-506.0,0.00025041,5]
[379179668,1755179433461,-150.0,0.00025143,4]
[379179670,1755179433471,-150.0,0.00025196,2]
[379179672,1755179433480,-176.57037844,0.00025211,2]
[379179674,1755179433490,-159.51989894,0.0002522,2]
[379179676,1755179433500,-161.0,0.0002524,3]
[379179678,1755179433510,-150.0,0.00025274,4]
[379179680,1755179433520,-13299.00223318,0.00025306,2]
[379179682,1755179433530,-259.01188396,0.00025311,2]
[379179684,1755179433540,-511.20645307,0.00025335,7]
[379179686,1755179433549,-500.0,0.00025367,2]
[379179688,1755179433559,-295.83184999,0.00025367,2]
[379179690,1755179433568,-500.0,0.00025367,2]
[379179692,1755179433578,-600.0,0.00025367,2]
[379179694,1755179433587,-600.0,0.00025367,2]
[379179696,1755179433596,-500.0,0.00025367,2]
[379179698,1755179433606,-600.0,0.00025367,2]
[379179700,1755179433615,-600.0,0.00025367,2]
[379179702,1755179433625,-500.0,0.00025367,2]
[379179704,1755179433635,-600.0,0.00025367,2]
[379179706,1755179433645,-500.0,0.00025367,2]
[379179708,1755179433655,-600.0,0.00025367,2]
[379179710,1755179433665,-500.0,0.00025367,2]
[379179712,1755179433674,-600.0,0.00025367,2]
[379179714,1755179433684,-600.0,0.00025367,2]
[379179716,1755179433694,-500.0,0.00025367,2]
[379179718,1755179433705,-200.0,0.00025367,2]
[379179720,1755179433715,-500.0,0.00025367,2]
[379179722,1755179433725,-600.0,0.00025367,2]
[379179724,1755179433735,-500.0,0.00025367,2]
[379179726,1755179433745,-600.0,0.00025367,2]
[379179728,1755179433755,-600.0,0.00025367,2]
[379179730,1755179433765,-500.0,0.00025367,2]
[379179732,1755179433774,-500.0,0.00025367,2]
[379179734,1755179433784,-151.0,0.00025367,2]
[379179735,1755179433794,-500.0,0.00025367,2]
[379179738,1755179433805,-151.0,0.00025367,2]
[379179740,1755179433815,-500.0,0.00025367,2]
[379179742,1755179433824,-151.0,0.00025367,2]
[379179745,1755179433834,-151.0,0.00025367,2]
[379179747,1755179433844,-151.0,0.00025367,2]
[379179749,1755179433855,-151.0,0.00025367,2]
[379179751,1755179433865,-151.0,0.00025367,2]
[379179754,1755179433874,-151.0,0.00025367,2]
[379179757,1755179433883,-151.0,0.00025367,2]
[379179760,1755179433893,-151.0,0.00025367,2]
[379179763,1755179433903,-151.0,0.00025367,2]
[379179766,1755179433914,-151.0,0.00025367,2]
[379179769,1755179433925,-151.0,0.00025367,2]
[379179772,1755179433935,-172.21059196,0.00025381,2]
[379179775,1755179433944,-500.0,0.00025381,2]
[379179778,1755179433957,-407.02755641,0.00025381,2]
[379179783,1755179433979,-500.0,0.00025381,2]
[379179786,1755179433989,-258.18541358,0.00025381,2]
[379179789,1755179433999,-101960.21896562,0.00025382,2]
[379179794,1755179434014,-59012.00103438,0.00025382,2]
[379179797,1755179434024,-150.0,0.00025406,4]
[379179800,1755179434034,-500.0,0.00025422,2]
[379179803,1755179434045,-303.77937008,0.00025425,2]
[379179805,1755179434054,-500.0,0.00025477,2]
[379179808,1755179434064,-632.42,0.00025505,2]
[379179811,1755179434074,-500.0,0.00025532,2]
[379179815,1755179434085,-3655.87,0.00025532,2]
[379179818,1755179434095,-150.0,0.00025538,4]
[379179820,1755179434105,-348.5468562,0.0002554,2]
[379179824,1755179434116,-7529.09947111,0.00025542,2]
[379179827,1755179434128,-5769.90276202,0.00025542,2]
[379179829,1755179434138,-500.0,0.00025587,2]
[379179831,1755179434148,-1000.0,0.00025627,2]
[379179833,1755179434158,-500.0,0.00025642,2]
[379179836,1755179434168,-393.31434231,0.00025655,2]
[379179839,1755179434178,-150.0,0.00025669,4]
[379179842,1755179434188,-684.11,0.00025692,30]
[379179845,1755179434198,-500.0,0.00025697,2]
[379179848,1755179434211,-500.0,0.00025752,2]
[379179851,1755179434222,-438.08182843,0.0002577,2]
[379179854,1755179434232,-4166.59639434,0.00025779,2]
[379179858,1755179434252,-517.19509645,0.00025779,2]
[379179860,1755179434264,-1832.31449799,0.00025779,2]
[379179863,1755179434277,-833.73953301,0.00025779,2]
[379179865,1755179434293,-498.92723845,0.00025779,2]
[379179867,1755179434310,-2032.49638822,0.00025779,2]
[379179870,1755179434322,-874.75013235,0.00025779,2]
[379179872,1755179434335,-2542.98295232,0.00025779,2]
[379179874,1755179434345,-150.0,0.00025801,4]
[379179876,1755179434355,-500.0,0.00025807,2]
[379179878,1755179434366,-494.67,0.00025836,2]
[379179880,1755179434377,-506.0,0.00025849,6]
[379179882,1755179434387,-500.0,0.00025862,2]
[379179884,1755179434397,-482.84931455,0.00025885,2]
[379179885,1755179434407,-151.0,0.00025915,2]
[379179886,1755179434417,-500.0,0.00025917,2]
[379179887,1755179434427,-150.0,0.00025933,4]
[379179888,1755179434436,-500.0,0.00025938,2]
[379179889,1755179434446,-1000.0,0.00025979,2]
[379179890,1755179434459,-511.20645305,0.00025994,9]
[379179891,1755179434469,-527.61680066,0.00025999,2]
[379179892,1755179434478,-166.07,0.00026,5]
[379179893,1755179434488,-1970.79206251,0.00026015,2]
[379179894,1755179434531,-767.61830622,0.00026015,2]
[379179895,1755179434543,-969.19187044,0.00026015,2]
[379179896,1755179434556,-2127.8275588,0.00026015,2]
[379179897,1755179434568,-1033.63361294,0.00026015,2]
[379179898,1755179434593,-6429.93882222,0.00026015,2]
[379179900,1755179434603,-606.1,0.00026055,2]
[379179902,1755179434612,-150.0,0.00026064,4]
[379179904,1755179434622,-572.38428678,0.00026114,2]
[379179906,1755179434632,-773.0448482,0.00026129,2]
[379179908,1755179434642,-150.0,0.00026196,4]
[379179911,1755179434653,-617.1517729,0.00026229,2]
[379179913,1755179434663,-13299.00223313,0.00026252,2]
[379179915,1755179434672,-150.0,0.00026327,4]
[379179917,1755179434682,-661.91925902,0.00026344,2]
[379179918,1755179434691,-773.04484819,0.00026355,2]
[379179920,1755179434700,-632.42,0.00026395,2]
[379179922,1755179434712,-2720.11,0.00026458,2]
[379179924,1755179434722,-313.13,0.00026458,2]
[379179926,1755179434732,-706.68674513,0.00026459,2]
[379179928,1755179434741,-150.0,0.00026459,4]
[379179930,1755179434751,-31970.38,0.00026469,2]
[379179932,1755179434761,-155.6818992,0.0002647,2]
[379179934,1755179434770,-13299.00223313,0.00026488,2]
[379179936,1755179434780,-150.0,0.00026492,2]
[379179938,1755179434790,-1000.0,0.00026527,2]
[379179940,1755179434800,-1864.1,0.00026554,2]
[379179942,1755179434810,-751.45423125,0.00026573,2]
[379179944,1755179434820,-773.04484819,0.0002658,2]
[379179946,1755179434830,-150.0,0.00026591,4]
[379179948,1755179434840,-13099.20073806,0.00026591,2]
[379179951,1755179434852,-780.83107278,0.00026591,2]
[379179953,1755179434867,-3713.03011095,0.00026591,2]
[379180293,1755179438270,-376.98,0.00025372,3]
[379180294,1755179438281,-5277.28317395,0.00026591,2]
[379180296,1755179438323,-4057.48290039,0.00026591,2]
[379180302,1755179438372,-3072.16200387,0.00026591,2]
[379180304,1755179438383,-712.03,0.00026591,2]
[379180306,1755179438392,-289.37,0.00026591,2]
[379180308,1755179438402,-4844.77,0.00026591,2]
[379180310,1755179438413,-587.27,0.00026591,2]
[379180312,1755179438423,-150.99,0.00026591,2]
[379180314,1755179438433,-29999.99,0.00026591,2]
[379180316,1755179438443,-2593.12,0.00026591,2]
[379180318,1755179438453,-19999.99,0.00026591,2]
[379180321,1755179438468,-999.99,0.00026591,2]
[379180322,1755179438478,-1852.42,0.00026594,2]
[379180325,1755179438488,-1700.0,0.000266,9]
[379180327,1755179438499,-1000.0,0.00026615,2]
[379180329,1755179438509,-511.20645305,0.00026653,10]
[379180331,1755179438519,-506.0,0.00026658,7]
[379180333,1755179438529,-269.11,0.00026676,2]
[379180335,1755179438539,-796.22171737,0.00026688,2]
[379180337,1755179438548,-3400.0,0.000267,9]
[379180339,1755179438558,-150.0,0.00026722,4]
[379180341,1755179438569,-13299.00223313,0.00026725,2]
[379180343,1755179438578,-2246.88,0.0002673,2]
[379180345,1755179438588,-156.587,0.00026736,2]
[379180347,1755179438598,-5200.0,0.000268,9]
[379180349,1755179438607,-840.98920348,0.00026803,2]
[379180351,1755179438617,-773.04484819,0.00026806,2]
[379180353,1755179438626,-23885.59,0.00026817,15]
[379180355,1755179438636,-500.0,0.00026849,2]
[379180357,1755179438646,-150.0,0.00026854,4]
[379180359,1755179438655,-923.0,0.000269,2]
[379180361,1755179438665,-6900.0,0.000269,9]
[379180363,1755179438675,-9155.60440334,0.000269,2]
[379180365,1755179438686,-885.7566896,0.00026918,2]
[379180367,1755179438695,-9155.60440329,0.00026959,2]
[379180369,1755179438708,-13299.00223313,0.00026961,2]
[379180371,1755179438720,-150.0,0.00026986,4]
[379180373,1755179438732,-21330.9740857,0.0002699,2]
[379180375,1755179438742,-9952.12,0.00027,2]
[379180377,1755179438752,-19596.50976945,0.00027,2]
[379180379,1755179438762,-500.0,0.00027,30]
[379180382,1755179438772,-600.0,0.00027,30]
[379180384,1755179438783,-165.0,0.00027,15]
[379180386,1755179438793,-165.0,0.00027,10]
[379180388,1755179438803,-600.0,0.00027,30]
[379180390,1755179438812,-9155.60440329,0.00027019,2]
[379180392,1755179438822,-1000.0,0.00027026,2]
[379180394,1755179438831,-773.04484819,0.00027031,2]
[379180396,1755179438840,-930.52417572,0.00027032,2]
[379180398,1755179438850,-9155.60440329,0.00027078,2]
[379180401,1755179438860,-150.0,0.00027117,4]
[379180403,1755179438869,-355.05,0.00027126,2]
[379180405,1755179438879,-9155.60440329,0.00027137,2]
[379180407,1755179438889,-150.0,0.00027139,2]
[379180408,1755179438899,-975.29166183,0.00027147,2]
[379180411,1755179438909,-1000.0,0.00027157,2]
[379180412,1755179438918,-1000.0,0.00027165,2]
[379180414,1755179438927,-161.0,0.00027178,14]
[379180417,1755179438937,-167.93,0.00027183,2]
[379180419,1755179438947,-275.4384,0.00027187,2]
[379180420,1755179438962,-3757.6229,0.00027187,2]
[379180422,1755179438971,-6932.1823,0.00027187,2]
[379180424,1755179438982,-9155.60440329,0.00027197,2]
[379180427,1755179438991,-287.34,0.00027197,2]
[379180428,1755179439001,-13299.00223313,0.00027198,2]
[379180430,1755179439011,-150.0,0.00027249,4]
[379180432,1755179439020,-401.42150219,0.0002725,2]
[379180435,1755179439030,-10665.4870429,0.00027252,2]
[379180437,1755179439040,-9155.60440329,0.00027256,2]
[379180439,1755179439050,-1020.05914795,0.00027262,2]
[379180441,1755179439060,-221.94,0.00027263,2]
[379180442,1755179439070,-150.0,0.00027264,2]
[379180445,1755179439080,-632.42,0.00027285,2]
[379180446,1755179439089,-738.66722162,0.00027297,2]
[379180448,1755179439099,-1882.53732048,0.00027297,2]
[379180451,1755179439110,-10665.4870429,0.00027297,2]
[379180453,1755179439119,-5000.0,0.000273,8]
[379180455,1755179439129,-3126.1,0.000273,2]
[379180457,1755179439140,-511.20645305,0.00027312,12]
[379180458,1755179439150,-9155.60440329,0.00027315,2]
[379180461,1755179439160,-401.42150218,0.00027316,2]
[379180463,1755179439170,-10665.4870429,0.00027328,2]
[379180465,1755179439180,-1000.0,0.00027341,2]
[379180467,1755179439190,-10665.4870429,0.00027357,2]
[379180469,1755179439200,-10665.4870429,0.00027367,2]
[379180471,1755179439214,-10665.4870429,0.0002737,2]
[379180473,1755179439224,-500.0,0.00027373,2]
[379180475,1755179439234,-500.0,0.00027373,2]
[379180477,1755179439244,-500.0,0.00027373,2]
[379180479,1755179439254,-500.0,0.00027373,2]
[379180481,1755179439263,-320.9337109,0.00027373,2]